lending/lending_fUSD_20250418
["ID","MTS","AMOUNT","RATE_DAILY","PERIOD"]
[358341794,1744960244735,-6769.85369587,0.0009377,120]
[358341804,1744960246167,-54026.54896235,0.0009377,120]
[358341805,1744960246178,-1045.975,0.0009377,120]
[358341806,1744960246194,-8132.04,0.0009377,120]
[358341807,1744960246206,-3150.73353402,0.0009377,120]
[358341809,1744960246221,-703.80662572,0.0009377,120]
[358341810,1744960246233,-3914.65150524,0.0009377,120]
[358341811,1744960246245,-3146.93304038,0.0009377,120]
[358341813,1744960246256,-1503.21153924,0.0009377,120]
[358341814,1744960246269,-366.45100182,0.0009377,120]
[358341815,1744960246280,-498.52971068,0.0009377,120]
[358341816,1744960246292,-12361.67421228,0.0009377,120]
[358341817,1744960246303,-4997.7066997,0.0009377,120]
[358341818,1744960246318,-1776.90112897,0.0009377,120]
[358341819,1744960246333,-16502.5198912,0.0009377,120]
[358341820,1744960246348,-6487.33388835,0.0009377,120]
[358341821,1744960246359,-2588.29699047,0.0009377,120]
[358341825,1744960451322,159.6352896,0.00028,120]
[358341835,1744961007430,990.68,0.00028,120]
[358341836,1744961108487,6588.0,0.0002,2]
[358341837,1744961108521,245387.0,0.0002,2]
[358341838,1744961109345,-245.8796453,0.0002,2]
[358341839,1744961134139,-445.33366405,0.0002,2]
[358341840,1744961227088,-300.0,0.00019999,2]
[358341841,1744961227111,-19.77569133,0.00019999,2]
[358341842,1744961230141,-280.22430867,0.00019999,2]
[358341843,1744961230164,-440.8243629,0.00019999,2]
[358341844,1744961231191,-409.1756371,0.00019999,2]
[358341845,1744961231212,-21.54709131,0.00019999,2]
[358341846,1744961233080,-183.08666417,0.00019999,2]
[358341847,1744961233102,-164.35610581,0.00019999,2]
[358341848,1744961233127,-293.19298965,0.00019999,2]
[358341849,1744961233149,-164.15492604,0.00019999,2]
[358341850,1744961233172,-119.292484,0.00019999,2]
[358341851,1744961236148,-232.66484273,0.00019999,2]
[358341852,1744961236180,-9196.24252982,0.0002,2]
[358341853,1744961240108,-1679.76583915,0.0002,2]
[358341854,1744961242086,-278.77253807,0.0002,2]
[358341857,1744961289566,-202.1704,0.0002,2]
[358341859,1744961329724,-565.04969656,0.0002,2]
[358341861,1744961399263,-398.64848627,0.000199,2]
[358341863,1744961407626,-152.8072001,0.000199,2]
[358341864,1744961407650,-60.58287205,0.00019973,2]
[358341865,1744961409122,-142.95931899,0.00019973,2]
[358341866,1744961409150,-502.47933043,0.00019973,2]
[358341868,1744961409180,-300.0,0.00019999,2]
[358341870,1744961409214,-3061.7060272,0.0002,2]
[358341872,1744961409479,-4007.14467662,0.0002,2]
[358341873,1744961409519,-4007.14467662,0.0002,2]
[358341874,1744961409560,-4007.14467662,0.0002,2]
[358341875,1744961409600,-610.25253357,0.0002,2]
[358341877,1744961426098,-360.64341735,0.00019973,2]
[358341882,1744961431882,-139.35658265,0.00019973,2]
[358341883,1744961431892,-159.50341735,0.00019973,2]
[358341884,1744961431903,-340.49658265,0.00019973,2]
[358341885,1744961431913,-2136.31204503,0.0002,2]
[358341886,1744961431927,-653.51,0.0002,2]
[358341887,1744961431975,-3894.63008053,0.0002,2]
[358341888,1744961431991,-2114.49592302,0.0002,2]
[358341889,1744961432074,-353.13041086,0.0002,2]
[358341918,1744961438066,-2689.40000173,0.0002,2]
[358341919,1744961438078,-431.71018402,0.0002,2]
[358341920,1744961438152,-354061.11061647,0.0002,2]
[358341921,1744961438164,-284508.21766687,0.0002,2]
[358341922,1744961438173,-45954.42406975,0.0002,2]
[358341985,1744961440129,-0.00357733,0.0002,2]
[358341986,1744961440235,-330.52675211,0.0002,2]
[358341987,1744961440247,-3295.50263789,0.0002,2]
[358341988,1744961440329,-797.6518777,0.0002,2]
[358342003,1744961444235,-591.87055632,0.0002,2]
[358342006,1744961445852,-292.09198471,0.0002,2]
[358342007,1744961446085,-422.0,0.0002,2]
[358342008,1744961446106,-5312.43600247,0.0002,2]
[358342009,1744961446198,-1688.0,0.0002,2]
[358342010,1744961446209,-381.08879998,0.0002,2]
[358342018,1744961688353,-186.56159628,0.000199,2]
[358342019,1744961688379,-63.43840372,0.000199,2]
[358342020,1744961763988,-250.0,0.000199,2]
[358342021,1744961772026,-250.0,0.000199,2]
[358342022,1744961782214,-207.12341404,0.000199,2]
[358342023,1744961787929,-162.84713776,0.000199,2]
[358342027,1744962107065,352.02338,0.0002,23]
[358342028,1744962159723,395.80328687,0.00019704,2]
[358342029,1744962164062,-392.10435699,0.00019899,2]
[358342030,1744962315813,835.62240541,0.000198,2]
[358342031,1744962324850,3239.974431,0.00019799,2]
[358342032,1744962330139,-250.0,0.000199,2]
[358342033,1744962330161,-183.48,0.000199,2]
[358342034,1744962330183,-1.86402388,0.000199,2]
[358342036,1744962391097,-359.47643078,0.000199,2]
[358342037,1744962425446,293.35282,0.0002,23]
[358342038,1744962426097,-1789.61869054,0.000199,2]
[358342039,1744962427136,-908.1503029,0.000199,2]
[358342040,1744962427157,-444.8252,0.000199,2]
[358342041,1744962427179,-4790.8305,0.000199,2]
[358342042,1744962427201,-4500.23403815,0.000199,2]
[358342043,1744962428136,-791.54825409,0.000199,2]
[358342044,1744962434140,-174.58815287,0.000199,2]
[358342045,1744962435679,210.6263,0.000198,2]
[358342046,1744962446077,-265.34477069,0.000199,2]
[358342047,1744962449078,-947.15479807,0.000199,2]
[358342052,1744962632010,-300.0,0.00019899,2]
[358342053,1744962632020,-250.0,0.00019899,2]
[358342054,1744962632030,-1377.97897956,0.000199,2]
[358342055,1744962632041,-365.19994533,0.000199,2]
[358342056,1744962632052,-948.9,0.000199,2]
[358342057,1744962632063,-927.61514,0.000199,2]
[358342058,1744962632079,-1071.20134048,0.000199,2]
[358342059,1744962632090,-610.44814184,0.000199,2]
[358342060,1744962632101,-43235.37472722,0.000199,2]
[358342061,1744962632198,-1073.90425003,0.000199,2]
[358342062,1744962632211,-718.889993,0.000199,2]
[358342063,1744962632223,-1166.26282641,0.000199,2]
[358342064,1744962632234,-11477.56866556,0.000199,2]
[358342065,1744962632246,-1343.02500153,0.000199,2]
[358342066,1744962632258,-5000.00297171,0.000199,2]
[358342067,1744962632270,-562.5,0.000199,2]
[358342084,1744962632447,-312.5,0.000199,2]
[358342089,1744962632507,-970.99304133,0.000199,2]
[358342093,1744962632527,-9004.69751611,0.000199,2]
[358342095,1744962632538,-1305.0,0.000199,2]
[358342111,1744962638170,-358.33485164,0.000199,2]
[358342112,1744962638183,-689.32368187,0.000199,2]
[358342113,1744962638195,-6513.49261251,0.000199,2]
[358342114,1744962638205,-538.6413891,0.000199,2]
[358342115,1744962638215,-250.0,0.00019923,2]
[358342116,1744962638225,-150.0,0.00019945,2]
[358342117,1744962638235,-546.54646317,0.00019973,2]
[358342118,1744962638245,-503.70547768,0.00019973,2]
[358342119,1744962638255,-166.85572298,0.00019973,2]
[358342120,1744962638264,-500.0,0.00019973,2]
[358342121,1744962638274,-159.72780437,0.00019973,2]
[358342122,1744962638284,-169.32186537,0.00019973,2]
[358342123,1744962638294,-155.82698222,0.00019973,2]
[358342124,1744962638303,-458.79658166,0.00019973,2]
[358342125,1744962638313,-236.03045731,0.00019973,2]
[358342126,1744962638323,-161.34545221,0.00019973,2]
[358342127,1744962638332,-159.99541808,0.00019973,2]
[358342128,1744962638342,-379.24039114,0.00019973,2]
[358342129,1744962638352,-207.12341404,0.00019973,2]
[358342130,1744962638362,-311.96538036,0.00019973,2]
[358342131,1744962638375,-188.03461964,0.00019973,2]
[358342132,1744962638385,-520.35426868,0.00019973,2]
[358342133,1744962638395,-326.28296547,0.00019999,2]
[358342134,1744962638404,-1000.79690213,0.00019999,2]
[358342135,1744962638414,-205.23509275,0.00019999,2]
[358342136,1744962638424,-363.14438088,0.00019999,2]
[358342137,1744962638433,-2166.98830222,0.0002,2]
[358342138,1744962638445,-3600.0,0.0002,2]
[358342139,1744962638458,-172178.03881513,0.0002,2]
[358342140,1744962638471,-633.51582077,0.0002,2]
[358342141,1744962638481,-250.0,0.00021889,2]
[358342142,1744962638491,-250.0,0.0002189,2]
[358342143,1744962638500,-763.35372279,0.00022,7]
[358342144,1744962638511,-1000.71695408,0.00025,2]
[358342145,1744962638520,-198.53,0.00025,2]
[358342146,1744962638530,-293.35282,0.00025,23]
[358342147,1744962638539,-152.0,0.000253,10]
[358342148,1744962638550,-1000.0,0.00025452,2]
[358342149,1744962638559,-1000.0,0.00025452,2]
[358342150,1744962638568,-293.35283,0.0003,23]
[358342151,1744962638578,-13137.42361853,0.0003133,2]
[358342152,1744962638589,-736.31206913,0.00031525,4]
[358342153,1744962638598,-150.0,0.00034548,10]
[358342154,1744962638607,-293.35282,0.00035,23]
[358342155,1744962638616,-1500.0,0.00035471,5]
[358342156,1744962638626,-1049.85559879,0.00035471,5]
[358342157,1744962638635,-644.82622758,0.00036,2]
[358342158,1744962638645,-530.0,0.00038493,2]
[358342159,1744962638654,-630.31480566,0.000388,2]
[358342160,1744962638663,-500.0,0.00039726,15]
[358342161,1744962638672,-500.0,0.00039726,15]
[358342162,1744962638681,-500.0,0.00039726,15]
[358342163,1744962638691,-500.0,0.00039726,15]
[358342164,1744962638699,-500.0,0.00039726,15]
[358342165,1744962638710,-500.0,0.00039726,15]
[358342166,1744962638719,-500.0,0.00039726,15]
[358342167,1744962638728,-500.0,0.00039726,15]
[358342168,1744962638737,-500.0,0.00039726,15]
[358342169,1744962638747,-500.0,0.00039726,15]
[358342170,1744962638756,-500.0,0.00039726,15]
[358342171,1744962638765,-500.0,0.00039726,15]
[358342172,1744962638774,-500.0,0.00039726,15]
[358342173,1744962638784,-500.0,0.00039726,15]
[358342174,1744962638793,-500.0,0.00039726,15]
[358342175,1744962638803,-500.0,0.00039726,15]
[358342176,1744962638812,-500.0,0.00039726,15]
[358342177,1744962638821,-500.0,0.00039726,15]
[358342178,1744962638834,-500.0,0.00039726,15]
[358342179,1744962638843,-500.0,0.00039726,15]
[358342180,1744962638853,-500.0,0.00039726,15]
[358342181,1744962638862,-500.0,0.00039726,15]
[358342182,1744962638872,-500.0,0.00039726,15]
[358342183,1744962638883,-634.0020634,0.00039726,15]
[358342184,1744962638892,-500.0,0.00039726,15]
[358342185,1744962638902,-393.80144438,0.00039726,15]
[358342186,1744962638911,-293.35283,0.0004,23]
[358342187,1744962638920,-1146.51,0.0004074,2]
[358342188,1744962638930,-174.28,0.00041449,2]
[358342189,1744962638939,-2626.13,0.00041545,2]
[358342190,1744962638948,-250.0,0.00041613,2]
[358342191,1744962638956,-1000.0,0.00041645,2]
[358342192,1744962638966,-154.85,0.00041747,30]
[358342193,1744962638975,-167.11,0.00041914,2]
[358342194,1744962638985,-169.39,0.00041958,2]
[358342195,1744962638995,-261.71,0.00042097,2]
[358342196,1744962639005,-192.64,0.00042293,120]
[358342197,1744962639014,-3326.34,0.00042322,2]
[358342198,1744962639024,-655.928,0.00042721,65]
[358342199,1744962639033,-160.05,0.00043545,2]
[358342200,1744962639043,-1410.67777074,0.000436,17]
[358342201,1744962639052,-244.84,0.00043803,2]
[358342202,1744962639062,-23900.0,0.00044232,2]
[358342203,1744962639072,-5143.3352771,0.00044261,15]
[358342204,1744962639081,-261.71,0.00044361,2]
[358342205,1744962639090,-538.6413891,0.00044567,64]
[358342206,1744962639100,-197.64,0.00044677,2]
[358342207,1744962639110,-152.98,0.00044694,2]
[358342208,1744962639120,-269.97844303,0.00045,120]
[358342209,1744962639130,-293.35282,0.00045,23]
[358342210,1744962639139,-150.0,0.00045589,10]
[358342211,1744962639149,-261.71,0.00046624,2]
[358342212,1744962639159,-1000.0,0.00046851,2]
[358342213,1744962639169,-192.64,0.0004758,120]
[358342214,1744962639178,-154.85,0.00047971,120]
[358342215,1744962639188,-5143.33527706,0.00048221,15]
[358342216,1744962639198,-549.26443291,0.00048445,10]
[358342217,1744962639208,-261.71,0.00048888,2]
[358342218,1744962639218,-19795.58282437,0.00049,14]
[358342219,1744962639228,-261.71,0.00051152,2]
[358342220,1744962639238,-500.0,0.00051275,10]
[358342221,1744962639248,-200.0,0.000517,18]
[358342222,1744962639257,-500.0,0.000518,18]
[358342223,1744962639267,-800.0,0.000519,18]
[358342224,1744962639277,-5000.0,0.0005199,120]
[358342225,1744962639286,-534.21662928,0.00051991,46]
[358342226,1744962639296,-151.56608142,0.00051998,29]
[358342227,1744962639306,-276.82533184,0.00051998,29]
[358342228,1744962639316,-2182.3824,0.00052001,10]
[358342229,1744962639325,-1000.0,0.00052057,120]
[358342230,1744962639335,-214.43186497,0.00052073,10]
[358342231,1744962639345,-500.0,0.00052073,2]
[358342232,1744962639354,-159.79403537,0.00052073,10]
[358342233,1744962639363,-500.0,0.00052073,10]
[358342234,1744962639373,-91817.8314074,0.0005208,4]
[358342235,1744962639385,-254.40904014,0.0005208,7]
[358342236,1744962639395,-300.0,0.00052089,30]
[358342237,1744962639404,-224.94,0.00052089,30]
[358342238,1744962639415,-300.0,0.00052089,30]
[358342239,1744962639425,-300.0,0.00052089,30]
[358342240,1744962639434,-300.0,0.00052089,30]
[358342241,1744962639444,-674.70159675,0.00052089,30]
[358342242,1744962639455,-300.0,0.00052089,30]
[358342243,1744962639469,-500.0,0.00052089,30]
[358342244,1744962639479,-300.0,0.00052089,30]
[358342245,1744962639489,-500.0,0.00052089,30]
[358342246,1744962639499,-676.03545945,0.00052089,30]
[358342247,1744962639510,-300.0,0.00052089,30]
[358342248,1744962639519,-61221.04564127,0.00052089,30]
[358342249,1744962639530,-779098.0,0.0005209,120]
[358342250,1744962639540,-300.0,0.00052097,30]
[358342251,1744962639552,-151.0,0.00052098,120]
[358342252,1744962639562,-151.0,0.00052098,120]
[358342253,1744962639572,-151.0,0.00052098,120]
[358342254,1744962639582,-151.0,0.00052098,120]
[358342255,1744962639592,-151.0,0.00052098,120]
[358342256,1744962639602,-165.183527,0.00052098,120]
[358342257,1744962639612,-151.0,0.00052098,120]
[358342258,1744962639621,-151.0,0.00052098,120]
[358342259,1744962639632,-151.0,0.00052098,120]
[358342260,1744962639643,-151.0,0.00052098,120]
[358342261,1744962639652,-247.950652,0.00052098,120]
[358342262,1744962639661,-151.0,0.00052098,120]
[358342263,1744962639671,-151.0,0.00052098,120]
[358342264,1744962639681,-162.502636,0.00052098,120]
[358342265,1744962639691,-206.837707,0.00052098,120]
[358342266,1744962639700,-206.837707,0.00052098,120]
[358342267,1744962639710,-206.837707,0.00052098,120]
[358342268,1744962639720,-206.837707,0.00052098,120]
[358342269,1744962639730,-151.0,0.00052098,120]
[358342270,1744962639740,-151.0,0.00052098,120]
[358342271,1744962639751,-152.076926,0.00052098,120]
[358342272,1744962639762,-181.552909,0.00052098,120]
[358342273,1744962639771,-181.552909,0.00052098,120]
[358342274,1744962639781,-181.552909,0.00052098,120]
[358342275,1744962639791,-181.552909,0.00052098,120]
[358342276,1744962639801,-151.0,0.00052098,120]
[358342277,1744962639811,-153.304364,0.00052098,120]
[358342278,1744962639820,-151.0,0.00052098,120]
[358342279,1744962639830,-152.216338,0.00052098,120]
[358342280,1744962639839,-151.0,0.00052098,120]
[358342281,1744962639848,-151.0,0.00052098,120]
[358342282,1744962639858,-326.309274,0.00052098,120]
[358342283,1744962639867,-326.309274,0.00052098,120]
[358342284,1744962639876,-326.309274,0.00052098,120]
[358342285,1744962639886,-326.309274,0.00052098,120]
[358342286,1744962639896,-2559.12,0.000521,60]
[358342287,1744962639906,-151.0,0.00052101,120]
[358342288,1744962639915,-152.674263,0.00052101,120]
[358342289,1744962639924,-151.0,0.00052101,120]
[358342290,1744962639934,-151.0,0.00052101,120]
[358342291,1744962639943,-154.899966,0.00052101,120]
[358342292,1744962639952,-151.0,0.00052101,120]
[358342293,1744962639961,-151.0,0.00052101,120]
[358342294,1744962639971,-153.499435,0.00052101,120]
[358342295,1744962639980,-151.0,0.00052101,120]
[358342296,1744962639990,-151.0,0.00052101,120]
[358342297,1744962640000,-152.66982,0.00052101,120]
[358342298,1744962640009,-151.0,0.00052101,120]
[358342299,1744962640019,-151.0,0.00052101,120]
[358342300,1744962640029,-151.0,0.00052101,120]
[358342301,1744962640039,-151.0,0.00052101,120]
[358342302,1744962640048,-151.951593,0.00052101,120]
[358342303,1744962640057,-151.0,0.00052101,120]
[358342304,1744962640067,-151.0,0.00052101,120]
[358342305,1744962640076,-151.0,0.00052101,120]
[358342306,1744962640086,-151.0,0.00052101,120]
[358342307,1744962640095,-151.0,0.00052101,120]
[358342308,1744962640105,-151.0,0.00052101,120]
[358342309,1744962640115,-300.0,0.0005211,30]
[358342310,1744962640125,-500.0,0.0005211,30]
[358342311,1744962640135,-300.0,0.0005211,30]
[358342312,1744962640144,-200324.75241374,0.00052111,30]
[358342313,1744962640157,-983.76745006,0.00052111,30]
[358342314,1744962640169,-1378.62714229,0.00052111,30]
[358342315,1744962640180,-3210.28983061,0.00052111,30]
[358342316,1744962640190,-3211.91999948,0.00052111,30]
[358342317,1744962640201,-1144.63046961,0.00052111,30]
[358342318,1744962640213,-453.12999309,0.00052111,30]
[358342319,1744962640224,-4850.43578301,0.00052111,30]
[358342320,1744962640235,-16822.12664002,0.00052111,30]
[358342321,1744962640246,-160744.53108716,0.00052111,30]
[358342322,1744962640255,-59386.73255273,0.00052111,30]
[358342323,1744962640270,-467.91456368,0.00052111,30]
[358342324,1744962640281,-374.99999994,0.00052111,30]
[358342325,1744962640293,-1696.62089369,0.00052111,30]
[358342326,1744962640304,-4792.68487853,0.00052111,30]
[358342327,1744962640315,-2086.06596141,0.00052111,30]
[358342328,1744962640327,-1235.0,0.00052111,30]
[358342329,1744962640342,-3997.606726,0.00052111,30]
[358342330,1744962640354,-1341.94469808,0.00052111,30]
[358342331,1744962640393,-3284.44,0.00052111,30]
[358342332,1744962640405,-19392.44679243,0.00052111,30]
[358342333,1744962640417,-2564.0,0.00052111,30]
[358342334,1744962640451,-4287.36,0.00052111,30]
[358342335,1744962640462,-45720.45,0.00052111,30]
[358342336,1744962640497,-591.81943592,0.00052111,30]
[358342337,1744962640511,-1137.82083903,0.00052111,30]
[358342338,1744962640544,-798.52623198,0.00052111,30]
[358342339,1744962640556,-263.9574886,0.00052111,30]
[358342340,1744962640664,-0.0004678,0.00052111,30]
[358342341,1744962640757,-3466.66055437,0.00052111,30]
[358342346,1744962643134,-653.38619871,0.00052111,30]
[358342347,1744962643180,-602.63,0.00052111,30]
[358342348,1744962644734,-493.09706335,0.00052111,30]
[358342352,1744962646237,-1844.0580273,0.00052111,30]
[358342353,1744962646248,-373.96352004,0.00052111,30]
[358342354,1744962646259,-450.9,0.00052111,30]
[358342364,1744963537122,-439.0114981,0.000328,2]
[358342365,1744963630143,-0.40155987,0.000328,2]
[358342366,1744963630166,-168.08,0.00032877,30]
[358342367,1744963630191,-250.0,0.0003608,2]
[358342368,1744963630213,-309.0,0.00044035,7]
[358342369,1744963630236,-508.46192473,0.00044035,7]
[358342370,1744963630263,-6741.54936184,0.00044135,2]
[358342371,1744963630287,-429.0,0.00045,120]
[358342372,1744963630310,-606.039713,0.00049203,2]
[358342373,1744963630333,-190.17704303,0.00049451,2]
[358342374,1744963630358,-196.28,0.000498,2]
[358342375,1744963630382,-550.0,0.00049899,5]
[358342376,1744963630406,-442.0,0.00049899,5]
[358342377,1744963630429,-200.0,0.00049899,60]
[358342378,1744963630455,-766.11854114,0.000499,22]
[358342381,1744963641138,-646.18069832,0.000499,22]
[358342382,1744963641160,-217.65727129,0.000507,2]
[358342383,1744963642089,-549.10387172,0.000507,2]
[358342384,1744963649090,-1006.02618841,0.000507,2]
[358342385,1744963651081,-86.6443366,0.000507,2]
[358342386,1744963651107,-519.836056,0.00051,67]
[358342387,1744963651132,-573.25,0.00051025,2]
[358342388,1744963651153,-250.48307731,0.00051093,120]
[358342392,1744963832180,-911.57,0.00045,3]
[358342393,1744963832190,-250.0,0.0005099,120]
[358342394,1744963832199,-831.46746763,0.00051,4]
[358342395,1744963832211,-168.53253237,0.00051,4]
[358342396,1744963832220,-749.51692269,0.00051093,120]
[358342397,1744963832229,-161.79,0.00051133,120]
[358342398,1744963832239,-206.13159951,0.00051346,10]
[358342399,1744963832250,-493.86840049,0.00051346,10]
[358342400,1744963832259,-2686.58290221,0.00051347,2]
[358342401,1744963832299,-1124.49855846,0.00051347,2]
[358342402,1744963832310,-2551.93954754,0.00051347,2]
[358342403,1744963832321,-585.30398229,0.00051347,2]
[358342404,1744963832332,-971.19243673,0.00051347,2]
[358342405,1744963832343,-1166.6660776,0.00051347,2]
[358342406,1744963832487,-300.0,0.00051347,2]
[358342412,1744963838443,-3300.0,0.00051347,2]
[358342413,1744963838457,-1474.21608244,0.00051347,2]
[358342414,1744963838468,-3231.13000415,0.00051347,2]
[358342415,1744963838480,-2469.59842164,0.00051347,2]
[358342416,1744963838491,-263.87137854,0.00051347,2]
[358342417,1744963838503,-3775.0006084,0.00051347,2]
[358342418,1744963838512,-167.08,0.00051718,2]
[358342419,1744963838522,-508.46192473,0.000519,8]
[358342420,1744963838531,-946.85746579,0.000519,23]
[358342421,1744963838669,-418.36513249,0.000519,23]
[358342422,1744963838680,-55.66317087,0.0005199,2]
[358342453,1744963840815,-369.0,0.0005199,2]
[358342454,1744963840933,-3584.20977091,0.0005199,2]
[358342455,1744963840944,-5371.0,0.0005199,2]
[358342456,1744963840966,-1043.87316363,0.0005199,2]
[358342490,1744963846383,-16554.88575185,0.0005199,2]
[358342492,1744963846394,-207.4,0.00051998,29]
[358342494,1744963846404,-215.0738,0.00051998,29]
[358342496,1744963846414,-223.0315306,0.00051998,29]
[358342498,1744963846424,-231.28369723,0.00051998,29]
[358342499,1744963846434,-239.84119403,0.00051998,29]
[358342501,1744963846443,-248.71531821,0.00051998,29]
[358342503,1744963846453,-257.91778498,0.00051998,29]
[358342504,1744963846463,-267.46074303,0.00051998,29]
[358342505,1744963846471,-277.35679052,0.00051998,29]
[358342506,1744963846480,-287.61899177,0.00051998,29]
[358342508,1744963846491,-425.13409586,0.00051998,29]
[358342510,1744963846503,-1547.50378101,0.00052,3]
[358342513,1744963846522,-4180.0,0.00052,3]
[358342515,1744963846533,-4304.69602151,0.00052,3]
[358342517,1744963846542,-604.0,0.00052,120]
[358342520,1744963846560,-500.0,0.00052,67]
[358342522,1744963846575,-7438.8159,0.00052008,2]
[358342523,1744963846587,-253.80616045,0.00052008,80]
[358342524,1744963846601,-272.02093138,0.00052008,80]
[358342525,1744963846612,-2753.19850329,0.00052008,15]
[358342526,1744963846622,-634.9894,0.00052008,2]
[358342527,1744963846632,-978.244,0.0005201,95]
[358342528,1744963846642,-1719.5516,0.0005201,2]
[358342529,1744963846651,-19.75205373,0.0005201,2]
[358342530,1744963846664,-352.71688,0.0005201,2]
[358342531,1744963846682,-627.53106627,0.0005201,2]
[358342532,1744963846691,-194.908,0.0005201,95]
[358342533,1744963846702,-119.59715865,0.0005201,2]
[358342547,1744964134574,155.11,0.00013699,2]
[358342548,1744964134878,155.11812683,0.00013699,2]
[358342603,1744964605921,-1926.13767285,0.0004,120]
[358342606,1744964708757,3673724.73913422,0.0002,2]
[358342607,1744964733126,-186.56159628,0.00049934,2]
[358342608,1744964733147,-207.97,0.00050034,2]
[358342609,1744964733170,-50.17823847,0.00050973,10]
[358342617,1744964820537,5000.00705048,0.00024,5]
[358342618,1744964826083,-277.43316848,0.00044999,5]
[358342619,1744964827075,-22.56683152,0.00044999,5]
[358342620,1744964827098,-320.15523581,0.00044999,5]
[358342621,1744964834130,-229.84476419,0.00044999,5]
[358342622,1744964834157,-505.50394445,0.00045,120]
[358342623,1744964835094,-6549.74701253,0.00045,120]
[358342624,1744964835117,-737.0,0.00047911,5]
[358342625,1744964835137,-150.78838332,0.00050873,2]
[358342626,1744964835157,-500.0,0.00050973,10]
[358342627,1744964835178,-500.91538115,0.00050973,2]
[358342628,1744964835198,-850.0,0.00050999,9]
[358342629,1744964835218,-333.51289331,0.00051,120]
[358342630,1744964836090,-430.72595881,0.00051,120]
[358342631,1744964838082,-1654.84349849,0.00051,120]
[358342632,1744964845072,-932.29579637,0.00051,120]
[358342638,1744964927632,1306.4528758,0.0002488,7]
[358342644,1744965032289,-300.0,0.00050999,10]
[358342645,1744965032299,-300.0,0.00050999,15]
[358342646,1744965032309,-803.93442627,0.00051,120]
[358342647,1744965032321,-387.20217863,0.00051,120]
[358342648,1744965032333,-4616.4377534,0.00051,120]
[358342649,1744965032451,-260.6522352,0.00051,120]
[358342650,1744965032462,-3157.46107573,0.00051,120]
[358342651,1744965032473,-700.0,0.00051,120]
[358342652,1744965032484,-1671.8876068,0.00051,120]
[358342653,1744965032558,-430.69498981,0.00051,120]
[358342656,1744965032570,-1534.3108601,0.00051,120]
[358342658,1744965032581,-402.91371413,0.00051,120]
[358342692,1744965038548,-5402.80000033,0.00051,120]
[358342693,1744965038559,-2384.6200526,0.00051,120]
[358342694,1744965038605,-784.500026,0.00051,120]
[358342695,1744965038617,-286.49996773,0.00051,120]
[358342706,1744965040574,-6479.34772063,0.00051,120]
[358342707,1744965040787,-30788.19554108,0.00051,120]
[358342708,1744965040799,-13712.04471264,0.00051,120]
[358342709,1744965040948,-2473.18007688,0.00051,120]
[358342710,1744965040960,-67371.93891507,0.00051,120]
[358342711,1744965040970,-2254.14169467,0.00051005,2]
[358342712,1744965040980,-2574.67,0.00051055,120]
[358342713,1744965040989,-238.92,0.00051106,120]
[358342714,1744965040999,-286.62,0.00051118,2]
[358342715,1744965041008,-250.0,0.00051149,120]
[358342716,1744965041017,-1000.0,0.00051149,120]
[358342717,1744965041027,-500.0,0.00051341,120]
[358342718,1744965041036,-1319.71517826,0.000519,23]
[358342719,1744965041047,-3213.73205024,0.00051908,15]
[358342720,1744965041056,-513.01279456,0.00051908,80]
[358342722,1744965041066,-157.1,0.0005193,120]
[358342723,1744965041075,-152.96,0.0005193,2]
[358342724,1744965041084,-514.90291555,0.00051973,2]
[358342725,1744965041094,-164.35610581,0.00051999,120]
[358342726,1744965041103,-500.0,0.00051999,120]